[Event "Titled Tuesday Blitz July 05 Early 2022"]
[White "Samunenkov, Ihor"]
[Black "Perez Gormaz, Matias"]
[WhiteFideId "14187086"]
[BlackFideId "3406342"]
[WhiteElo "2409"]
[BlackElo "2341"]
[Result "1/2-1/2"]
[Round "06"]
[TimeControl "180+1"]
[Date "2022.07.05"]
[WhiteClock "0:00:05"]
[BlackClock "0:00:14"]

1. e4 {[%clk 0:03:00]}  c5 {[%clk 0:03:00]} 2. Nf3 {[%clk 0:03:01]}  e6 {[%clk 0:03:00]} 3. d4 {[%clk 0:03:01]}  cxd4 {[%clk 0:03:01]} 4. Nxd4 {[%clk 0:03:02]}  a6 {[%clk 0:03:01]} 5. c4 {[%clk 0:03:02]}  Nf6 {[%clk 0:03:00]} 6. Nc3 {[%clk 0:03:02]}  Qc7 {[%clk 0:02:57]} 7. a3 {[%clk 0:03:02]}  b6 {[%clk 0:02:57]} 8. Be3 {[%clk 0:03:01]}  Bb7 {[%clk 0:02:57]} 9. f3 {[%clk 0:03:01]}  Nc6 {[%clk 0:02:41]} 10. Rc1 {[%clk 0:02:58]}  Nxd4 {[%clk 0:02:37]} 11. Bxd4 {[%clk 0:02:50]}  Bd6 {[%clk 0:02:36]} 12. g3 {[%clk 0:02:40]}  h5 {[%clk 0:02:34]} 13. Qe2 {[%clk 0:02:23]}  Bc5 {[%clk 0:02:25]} 14. Bxc5 {[%clk 0:01:57]}  bxc5 {[%clk 0:02:17]} 15. Bg2 {[%clk 0:01:52]}  h4 {[%clk 0:02:14]} 16. e5 {[%clk 0:01:42]}  h3 {[%clk 0:02:09]} 17. exf6 {[%clk 0:01:39]}  hxg2 {[%clk 0:02:09]} 18. Qxg2 {[%clk 0:01:39]}  gxf6 {[%clk 0:02:09]} 19. O-O {[%clk 0:01:40]}  O-O-O {[%clk 0:02:02]} 20. b4 {[%clk 0:01:27]}  Rdg8 {[%clk 0:02:02]} 21. Qf2 {[%clk 0:01:24]}  Kb8 {[%clk 0:01:50]} 22. bxc5 {[%clk 0:01:15]}  f5 {[%clk 0:01:40]} 23. Rb1 {[%clk 0:01:12]}  f4 {[%clk 0:01:30]} 24. g4 {[%clk 0:00:41]}  f5 {[%clk 0:01:28]} 25. c6 {[%clk 0:00:33]}  Qxc6 {[%clk 0:00:23]} 26. Rb6 {[%clk 0:00:33]}  Rxg4+ {[%clk 0:00:23]} 27. Kh1 {[%clk 0:00:33]}  Qc7 {[%clk 0:00:22]} 28. Rfb1 {[%clk 0:00:29]}  Rgh4 {[%clk 0:00:01]} 29. Rxb7+ {[%clk 0:00:19]}  Qxb7 {[%clk 0:00:02]} 30. Rxb7+ {[%clk 0:00:19]}  Kxb7 {[%clk 0:00:03]} 31. Na4 {[%clk 0:00:19]}  Rxh2+ {[%clk 0:00:03]} 32. Qxh2 {[%clk 0:00:18]}  Rxh2+ {[%clk 0:00:04]} 33. Kxh2 {[%clk 0:00:19]}  Kc6 {[%clk 0:00:05]} 34. Kg2 {[%clk 0:00:17]}  d5 {[%clk 0:00:05]} 35. cxd5+ {[%clk 0:00:05]}  Kxd5 {[%clk 0:00:06]} 36. Kf2 {[%clk 0:00:05]}  Kc4 {[%clk 0:00:05]} 37. Ke2 {[%clk 0:00:05]}  e5 {[%clk 0:00:06]} 38. Nb6+ {[%clk 0:00:04]}  Kb3 {[%clk 0:00:06]} 39. a4 {[%clk 0:00:04]}  Kb4 {[%clk 0:00:04]} 40. Nd7 {[%clk 0:00:03]}  e4 {[%clk 0:00:04]} 41. Nb6 {[%clk 0:00:04]}  Ka5 {[%clk 0:00:03]} 42. Nc4+ {[%clk 0:00:02]}  Kxa4 {[%clk 0:00:03]} 43. Nd6 {[%clk 0:00:03]}  exf3+ {[%clk 0:00:04]} 44. Kxf3 {[%clk 0:00:03]}  Kb4 {[%clk 0:00:04]} 45. Nxf5 {[%clk 0:00:04]}  a5 {[%clk 0:00:05]} 46. Nd4 {[%clk 0:00:04]}  a4 {[%clk 0:00:05]} 47. Kxf4 {[%clk 0:00:05]}  Kc4 {[%clk 0:00:05]} 48. Nc2 {[%clk 0:00:03]}  Kc3 {[%clk 0:00:06]} 49. Na3 {[%clk 0:00:03]}  Kb3 {[%clk 0:00:07]} 50. Nb5 {[%clk 0:00:04]}  Kb2 {[%clk 0:00:08]} 51. Ke4 {[%clk 0:00:03]}  Kb3 {[%clk 0:00:09]} 52. Kd4 {[%clk 0:00:04]}  Kb4 {[%clk 0:00:10]} 53. Nc3 {[%clk 0:00:03]}  a3 {[%clk 0:00:11]} 54. Kd3 {[%clk 0:00:03]}  Kb3 {[%clk 0:00:12]} 55. Kd4 {[%clk 0:00:04]}  Kb2 {[%clk 0:00:12]} 56. Kd3 {[%clk 0:00:04]}  Kb3 {[%clk 0:00:13]} 57. Kd4 {[%clk 0:00:04]}  Kb4 {[%clk 0:00:13]} 58. Kd3 {[%clk 0:00:05]}  Kb3 {[%clk 0:00:14]} 1/2-1/2


[Site "https://www.chess.com"]

[Event "Titled Tuesday Blitz July 05 Early 2022"]
[White "Timofeev, Artyom"]
[Black "Krysa, Leandro"]
[WhiteFideId "4140419"]
[BlackFideId "116807"]
[WhiteElo "2578"]
[BlackElo "2490"]
[Result "1-0"]
[Round "06"]
[TimeControl "180+1"]
[Date "2022.07.05"]
[WhiteClock "0:00:37"]
[BlackClock "0:00:02"]

1. e4 {[%clk 0:03:00]}  c5 {[%clk 0:02:59]} 2. Nc3 {[%clk 0:03:00]}  Nc6 {[%clk 0:02:59]} 3. Bb5 {[%clk 0:02:59]}  Nd4 {[%clk 0:02:59]} 4. Nf3 {[%clk 0:02:59]}  e6 {[%clk 0:02:56]} 5. O-O {[%clk 0:02:56]}  a6 {[%clk 0:02:56]} 6. Bd3 {[%clk 0:02:56]}  Ne7 {[%clk 0:02:54]} 7. Nxd4 {[%clk 0:02:48]}  cxd4 {[%clk 0:02:55]} 8. Ne2 {[%clk 0:02:48]}  Nc6 {[%clk 0:02:56]} 9. c3 {[%clk 0:02:48]}  Bc5 {[%clk 0:02:56]} 10. b4 {[%clk 0:02:47]}  Ba7 {[%clk 0:02:54]} 11. Bb2 {[%clk 0:02:47]}  dxc3 {[%clk 0:02:48]} 12. Bxc3 {[%clk 0:02:46]}  O-O {[%clk 0:02:47]} 13. Qc2 {[%clk 0:02:40]}  d6 {[%clk 0:02:37]} 14. Kh1 {[%clk 0:02:39]}  e5 {[%clk 0:02:33]} 15. f4 {[%clk 0:02:36]}  Bg4 {[%clk 0:02:31]} 16. Rae1 {[%clk 0:02:26]}  Qh4 {[%clk 0:02:28]} 17. Ng3 {[%clk 0:02:12]}  Nd4 {[%clk 0:02:09]} 18. Bxd4 {[%clk 0:02:03]}  Bxd4 {[%clk 0:02:06]} 19. f5 {[%clk 0:02:04]}  Bh5 {[%clk 0:01:21]} 20. Bc4 {[%clk 0:01:56]}  Kh8 {[%clk 0:01:17]} 21. Bd5 {[%clk 0:01:39]}  Rac8 {[%clk 0:01:15]} 22. Qd3 {[%clk 0:01:37]}  Rc7 {[%clk 0:01:12]} 23. Rc1 {[%clk 0:01:28]}  Rfc8 {[%clk 0:01:10]} 24. Rxc7 {[%clk 0:01:28]}  Rxc7 {[%clk 0:01:10]} 25. b5 {[%clk 0:01:28]}  a5 {[%clk 0:00:44]} 26. b6 {[%clk 0:01:28]}  Rd7 {[%clk 0:00:23]} 27. Qb5 {[%clk 0:01:23]}  Rd8 {[%clk 0:00:18]} 28. Bxb7 {[%clk 0:01:23]}  f6 {[%clk 0:00:08]} 29. Bc6 {[%clk 0:01:19]}  Bf7 {[%clk 0:00:05]} 30. b7 {[%clk 0:01:18]}  Rb8 {[%clk 0:00:05]} 31. Qxa5 {[%clk 0:01:07]}  h5 {[%clk 0:00:04]} 32. Qa8 {[%clk 0:01:02]}  Rg8 {[%clk 0:00:02]} 33. b8=Q {[%clk 0:01:01]}  Rxb8 {[%clk 0:00:02]} 34. Qxb8+ {[%clk 0:01:01]}  Kh7 {[%clk 0:00:03]} 35. Qb5 {[%clk 0:00:50]}  Qg5 {[%clk 0:00:03]} 36. Ne2 {[%clk 0:00:40]}  h4 {[%clk 0:00:02]} 37. Nxd4 {[%clk 0:00:39]}  exd4 {[%clk 0:00:03]} 38. Qd3 {[%clk 0:00:38]}  h3 {[%clk 0:00:02]} 39. Qxh3+ {[%clk 0:00:37]} 1-0


[Site "https://www.chess.com"]

[Event "Titled Tuesday Blitz July 05 Early 2022"]
[White "Tristan, Leonardo"]
[Black "Koziorowicz, Michal"]
[WhiteFideId "113816"]
[BlackFideId "21809194"]
[WhiteElo "2404"]
[BlackElo "2202"]
[Result "1-0"]
[Round "06"]
[TimeControl "180+1"]
[Date "2022.07.05"]
[WhiteClock "0:00:06"]
[BlackClock "0:00:08"]

1. d4 {[%clk 0:03:00]}  Nf6 {[%clk 0:02:59]} 2. Nf3 {[%clk 0:03:01]}  g6 {[%clk 0:02:59]} 3. Bf4 {[%clk 0:03:01]}  Bg7 {[%clk 0:03:00]} 4. e3 {[%clk 0:03:02]}  O-O {[%clk 0:03:00]} 5. Be2 {[%clk 0:03:02]}  d6 {[%clk 0:03:01]} 6. O-O {[%clk 0:03:03]}  c5 {[%clk 0:02:59]} 7. c3 {[%clk 0:03:02]}  Nc6 {[%clk 0:02:58]} 8. h3 {[%clk 0:03:00]}  Re8 {[%clk 0:02:53]} 9. Bh2 {[%clk 0:02:57]}  Bf5 {[%clk 0:02:31]} 10. Nbd2 {[%clk 0:02:54]}  Qb6 {[%clk 0:02:30]} 11. Nc4 {[%clk 0:02:54]}  Qd8 {[%clk 0:02:30]} 12. dxc5 {[%clk 0:02:37]}  dxc5 {[%clk 0:02:30]} 13. Qb3 {[%clk 0:02:33]}  Na5 {[%clk 0:02:26]} 14. Nxa5 {[%clk 0:02:32]}  Qxa5 {[%clk 0:02:27]} 15. Qxb7 {[%clk 0:02:30]}  Be6 {[%clk 0:02:10]} 16. Qb5 {[%clk 0:02:25]}  Qxb5 {[%clk 0:02:06]} 17. Bxb5 {[%clk 0:02:26]}  Red8 {[%clk 0:02:07]} 18. Bc6 {[%clk 0:02:23]}  Bc4 {[%clk 0:02:02]} 19. Rfe1 {[%clk 0:02:17]}  Rac8 {[%clk 0:02:02]} 20. Bb7 {[%clk 0:02:18]}  Rb8 {[%clk 0:02:02]} 21. Bxb8 {[%clk 0:02:15]}  Rxb8 {[%clk 0:02:03]} 22. b3 {[%clk 0:02:07]}  Bxb3 {[%clk 0:01:38]} 23. axb3 {[%clk 0:02:06]}  Rxb7 {[%clk 0:01:38]} 24. Ra5 {[%clk 0:01:51]}  Ne4 {[%clk 0:01:38]} 25. Rea1 {[%clk 0:01:37]}  Bxc3 {[%clk 0:01:36]} 26. Rxa7 {[%clk 0:01:36]}  Rxb3 {[%clk 0:01:36]} 27. R1a4 {[%clk 0:01:20]}  Rb1+ {[%clk 0:01:32]} 28. Kh2 {[%clk 0:01:20]}  Nxf2 {[%clk 0:01:30]} 29. Rxe7 {[%clk 0:01:21]}  Bf6 {[%clk 0:01:25]} 30. Re8+ {[%clk 0:01:14]}  Kg7 {[%clk 0:01:25]} 31. Rc4 {[%clk 0:01:11]}  Nd3 {[%clk 0:01:06]} 32. e4 {[%clk 0:01:09]}  Ba1 {[%clk 0:01:05]} 33. e5 {[%clk 0:01:08]}  Rb4 {[%clk 0:01:01]} 34. Rxb4 {[%clk 0:00:45]}  cxb4 {[%clk 0:01:02]} 35. e6 {[%clk 0:00:46]}  fxe6 {[%clk 0:00:55]} 36. Rxe6 {[%clk 0:00:47]}  Bc3 {[%clk 0:00:50]} 37. Re7+ {[%clk 0:00:32]}  Kf6 {[%clk 0:00:50]} 38. Rxh7 {[%clk 0:00:32]}  b3 {[%clk 0:00:49]} 39. Rb7 {[%clk 0:00:33]}  b2 {[%clk 0:00:47]} 40. Rb3 {[%clk 0:00:33]}  Nc1 {[%clk 0:00:40]} 41. Rb6+ {[%clk 0:00:32]}  Kf5 {[%clk 0:00:39]} 42. Nh4+ {[%clk 0:00:27]}  Kg5 {[%clk 0:00:35]} 43. g3 {[%clk 0:00:25]}  Bf6 {[%clk 0:00:23]} 44. Nf3+ {[%clk 0:00:20]}  Kf5 {[%clk 0:00:24]} 45. Nd2 {[%clk 0:00:21]}  Nd3 {[%clk 0:00:22]} 46. Rb3 {[%clk 0:00:19]}  Nc1 {[%clk 0:00:18]} 47. Rb5+ {[%clk 0:00:19]}  Ke6 {[%clk 0:00:18]} 48. Ne4 {[%clk 0:00:12]}  Bd4 {[%clk 0:00:17]} 49. Kg2 {[%clk 0:00:09]}  Nd3 {[%clk 0:00:16]} 50. Kf3 {[%clk 0:00:05]}  Ne5+ {[%clk 0:00:14]} 51. Ke2 {[%clk 0:00:05]}  Kf5 {[%clk 0:00:14]} 52. Nd2 {[%clk 0:00:05]}  Bc3 {[%clk 0:00:13]} 53. Nf3 {[%clk 0:00:05]}  Ke4 {[%clk 0:00:12]} 54. Nxe5 {[%clk 0:00:06]}  Bxe5 {[%clk 0:00:13]} 55. Rb4+ {[%clk 0:00:06]}  Bd4 {[%clk 0:00:11]} 56. Kd2 {[%clk 0:00:06]}  Kf3 {[%clk 0:00:11]} 57. Rb3+ {[%clk 0:00:05]}  Kg2 {[%clk 0:00:11]} 58. h4 {[%clk 0:00:05]}  Be5 {[%clk 0:00:11]} 59. g4 {[%clk 0:00:05]}  Bf6 {[%clk 0:00:10]} 60. h5 {[%clk 0:00:04]}  gxh5 {[%clk 0:00:11]} 61. gxh5 {[%clk 0:00:04]}  Be5 {[%clk 0:00:10]} 62. Kc2 {[%clk 0:00:05]}  Kf2 {[%clk 0:00:09]} 63. h6 {[%clk 0:00:05]}  Kg2 {[%clk 0:00:08]} 64. h7 {[%clk 0:00:06]}  Kf2 {[%clk 0:00:08]} 65. Rxb2 {[%clk 0:00:06]} 1-0


[Site "https://www.chess.com"]

[Event "Titled Tuesday Blitz July 05 Early 2022"]
[White "Wagner, Dennis"]
[Black "Svane, Rasmus"]
[WhiteFideId "24650684"]
[BlackFideId "4657101"]
[WhiteElo "2355"]
[BlackElo "2674"]
[Result "0-1"]
[Round "06"]
[TimeControl "180+1"]
[Date "2022.07.05"]
[WhiteClock "0:00:01"]
[BlackClock "0:00:40"]

1. d4 {[%clk 0:03:00]}  Nf6 {[%clk 0:02:58]} 2. c4 {[%clk 0:03:01]}  e6 {[%clk 0:02:59]} 3. Nf3 {[%clk 0:03:02]}  d5 {[%clk 0:02:58]} 4. g3 {[%clk 0:03:03]}  Be7 {[%clk 0:02:54]} 5. Bg2 {[%clk 0:03:03]}  O-O {[%clk 0:02:54]} 6. O-O {[%clk 0:03:04]}  dxc4 {[%clk 0:02:55]} 7. Na3 {[%clk 0:03:03]}  Bxa3 {[%clk 0:02:54]} 8. bxa3 {[%clk 0:03:04]}  Bd7 {[%clk 0:02:54]} 9. a4 {[%clk 0:03:05]}  Bc6 {[%clk 0:02:43]} 10. Ba3 {[%clk 0:03:05]}  Re8 {[%clk 0:02:41]} 11. Qc2 {[%clk 0:03:06]}  Nbd7 {[%clk 0:02:38]} 12. Rac1 {[%clk 0:03:05]}  a6 {[%clk 0:02:20]} 13. Rfe1 {[%clk 0:03:04]}  b5 {[%clk 0:02:17]} 14. e4 {[%clk 0:03:02]}  h6 {[%clk 0:02:08]} 15. h4 {[%clk 0:03:01]}  Qc8 {[%clk 0:02:05]} 16. Ne5 {[%clk 0:02:17]}  Bb7 {[%clk 0:01:54]} 17. Qc3 {[%clk 0:02:04]}  c5 {[%clk 0:01:46]} 18. dxc5 {[%clk 0:00:59]}  Nxc5 {[%clk 0:01:46]} 19. Qb4 {[%clk 0:00:50]}  Ncxe4 {[%clk 0:01:43]} 20. g4 {[%clk 0:00:19]}  Qc7 {[%clk 0:01:35]} 21. f4 {[%clk 0:00:20]}  Nd5 {[%clk 0:01:29]} 22. Qb1 {[%clk 0:00:12]}  Qb6+ {[%clk 0:01:07]} 23. Kh2 {[%clk 0:00:12]}  Nd2 {[%clk 0:00:49]} 24. Qb2 {[%clk 0:00:07]}  Qf2 {[%clk 0:00:45]} 25. g5 {[%clk 0:00:01]}  Nxf4 {[%clk 0:00:40]} 0-1


[Site "https://www.chess.com"]

[Event "Titled Tuesday Blitz July 05 Early 2022"]
[White "Barp, Alberto"]
[Black "Terry, Renato"]
[WhiteFideId "872555"]
[BlackFideId "3803457"]
[WhiteElo "2229"]
[BlackElo "2577"]
[Result "0-1"]
[Round "07"]
[TimeControl "180+1"]
[Date "2022.07.05"]
[WhiteClock "0:00:38"]
[BlackClock "0:01:09"]

1. d4 {[%clk 0:03:00]}  d5 {[%clk 0:02:58]} 2. c4 {[%clk 0:02:53]}  dxc4 {[%clk 0:02:59]} 3. Nf3 {[%clk 0:02:52]}  Nf6 {[%clk 0:02:59]} 4. e3 {[%clk 0:02:52]}  e6 {[%clk 0:02:59]} 5. Bxc4 {[%clk 0:02:51]}  a6 {[%clk 0:03:00]} 6. O-O {[%clk 0:02:49]}  c5 {[%clk 0:03:01]} 7. Nc3 {[%clk 0:02:46]}  b5 {[%clk 0:02:59]} 8. Be2 {[%clk 0:02:46]}  Bb7 {[%clk 0:02:59]} 9. dxc5 {[%clk 0:02:45]}  Bxc5 {[%clk 0:02:55]} 10. Qxd8+ {[%clk 0:02:41]}  Kxd8 {[%clk 0:02:56]} 11. Nd2 {[%clk 0:02:40]}  Nbd7 {[%clk 0:02:54]} 12. Nb3 {[%clk 0:02:37]}  Bb4 {[%clk 0:02:53]} 13. Bd2 {[%clk 0:02:35]}  Nd5 {[%clk 0:02:40]} 14. Nxd5 {[%clk 0:02:23]}  Bxd2 {[%clk 0:02:39]} 15. Nxd2 {[%clk 0:02:24]}  Bxd5 {[%clk 0:02:39]} 16. Rfc1 {[%clk 0:02:22]}  Ke7 {[%clk 0:02:18]} 17. a4 {[%clk 0:02:17]}  bxa4 {[%clk 0:02:12]} 18. Rxa4 {[%clk 0:02:18]}  Rhc8 {[%clk 0:02:12]} 19. Rd1 {[%clk 0:01:55]}  Rc2 {[%clk 0:02:11]} 20. Rxa6 {[%clk 0:01:51]}  Rxa6 {[%clk 0:02:09]} 21. Bxa6 {[%clk 0:01:52]}  Rxb2 {[%clk 0:02:09]} 22. Bf1 {[%clk 0:01:28]}  Ne5 {[%clk 0:01:58]} 23. f3 {[%clk 0:01:21]}  g5 {[%clk 0:01:55]} 24. e4 {[%clk 0:01:20]}  Ba2 {[%clk 0:01:48]} 25. Be2 {[%clk 0:00:54]}  h5 {[%clk 0:01:33]} 26. Kf2 {[%clk 0:00:54]}  Bb3 {[%clk 0:01:17]} 27. Nxb3 {[%clk 0:00:48]}  Rxb3 {[%clk 0:01:18]} 28. Rd2 {[%clk 0:00:48]}  h4 {[%clk 0:01:17]} 29. g3 {[%clk 0:00:48]}  Kf6 {[%clk 0:01:17]} 30. Rc2 {[%clk 0:00:39]}  Ra3 {[%clk 0:01:10]} 31. Rd2 {[%clk 0:00:39]}  Rc3 {[%clk 0:01:11]} 32. Rb2 {[%clk 0:00:38]}  Rxf3+ {[%clk 0:01:08]} 33. Bxf3 {[%clk 0:00:38]}  Nd3+ {[%clk 0:01:08]} 34. Ke3 {[%clk 0:00:39]}  Nxb2 {[%clk 0:01:09]} 35. gxh4 {[%clk 0:00:39]}  gxh4 {[%clk 0:01:09]} 36. Kf4 {[%clk 0:00:40]}  Nd3+ {[%clk 0:01:09]} 37. Ke3 {[%clk 0:00:38]}  Ne5 {[%clk 0:01:10]} 38. Be2 {[%clk 0:00:38]}  Kg5 {[%clk 0:01:10]} 39. Bd1 {[%clk 0:00:38]}  Ng4+ {[%clk 0:01:09]} 40. Kf3 {[%clk 0:00:38]}  Nxh2+ {[%clk 0:01:09]} 0-1


[Site "https://www.chess.com"]

[Event "Titled Tuesday Blitz July 05 Early 2022"]
[White "Barria Zuniga, Daniel"]
[Black "Rostovtsev, Dmitry"]
[WhiteFideId "3400816"]
[BlackFideId "34278320"]
[WhiteElo "2414"]
[BlackElo "2232"]
[Result "0-1"]
[Round "07"]
[TimeControl "180+1"]
[Date "2022.07.05"]
[WhiteClock "0:00:14"]
[BlackClock "0:00:19"]

1. d4 {[%clk 0:03:00]}  Nf6 {[%clk 0:02:59]} 2. c4 {[%clk 0:02:58]}  g6 {[%clk 0:02:59]} 3. Nc3 {[%clk 0:02:55]}  d5 {[%clk 0:02:59]} 4. Bf4 {[%clk 0:02:54]}  Bg7 {[%clk 0:02:58]} 5. e3 {[%clk 0:02:54]}  O-O {[%clk 0:02:53]} 6. Rc1 {[%clk 0:02:54]}  c5 {[%clk 0:02:51]} 7. dxc5 {[%clk 0:02:54]}  Be6 {[%clk 0:02:36]} 8. Nf3 {[%clk 0:02:52]}  Qa5 {[%clk 0:02:31]} 9. Be2 {[%clk 0:02:44]}  dxc4 {[%clk 0:02:28]} 10. Ng5 {[%clk 0:02:37]}  Bf5 {[%clk 0:02:21]} 11. Bxc4 {[%clk 0:02:28]}  h6 {[%clk 0:02:17]} 12. Nxf7 {[%clk 0:02:22]}  Rxf7 {[%clk 0:02:17]} 13. Bxf7+ {[%clk 0:02:23]}  Kxf7 {[%clk 0:02:14]} 14. Qb3+ {[%clk 0:02:23]}  Be6 {[%clk 0:01:15]} 15. Qxb7 {[%clk 0:02:23]}  Bc4 {[%clk 0:01:11]} 16. Qxa8 {[%clk 0:02:16]}  Nd5 {[%clk 0:01:10]} 17. Qxb8 {[%clk 0:01:05]}  Nxc3 {[%clk 0:00:55]} 18. Be5 {[%clk 0:00:39]}  Ne4+ {[%clk 0:00:28]} 19. b4 {[%clk 0:00:33]}  Qxa2 {[%clk 0:00:27]} 20. Bb2 {[%clk 0:00:17]}  Qxb2 {[%clk 0:00:18]} 21. Qf4+ {[%clk 0:00:15]}  Bf6 {[%clk 0:00:19]} 22. Rxc4 {[%clk 0:00:14]}  Qd2+ {[%clk 0:00:19]} 0-1


[Site "https://www.chess.com"]

[Event "Titled Tuesday Blitz July 05 Early 2022"]
[White "Garcia Ramos, Daniel"]
[Black "Csonka, Balazs"]
[WhiteFideId "32010311"]
[BlackFideId "742910"]
[WhiteElo "2268"]
[BlackElo "2404"]
[Result "1-0"]
[Round "07"]
[TimeControl "180+1"]
[Date "2022.07.05"]
[WhiteClock "0:00:30"]
[BlackClock "0:00:06"]

1. e4 {[%clk 0:02:56]}  c5 {[%clk 0:02:59]} 2. Nf3 {[%clk 0:02:56]}  Nc6 {[%clk 0:02:59]} 3. d4 {[%clk 0:02:56]}  cxd4 {[%clk 0:03:00]} 4. Nxd4 {[%clk 0:02:56]}  e6 {[%clk 0:03:00]} 5. Nc3 {[%clk 0:02:56]}  Qc7 {[%clk 0:03:01]} 6. Be3 {[%clk 0:02:56]}  a6 {[%clk 0:03:00]} 7. a3 {[%clk 0:02:57]}  Be7 {[%clk 0:02:55]} 8. g4 {[%clk 0:02:57]}  b5 {[%clk 0:02:46]} 9. h4 {[%clk 0:02:55]}  Bb7 {[%clk 0:02:38]} 10. Bg2 {[%clk 0:02:53]}  Ne5 {[%clk 0:02:31]} 11. g5 {[%clk 0:02:30]}  Rc8 {[%clk 0:02:11]} 12. Nce2 {[%clk 0:02:13]}  h6 {[%clk 0:02:00]} 13. Ng3 {[%clk 0:01:59]}  hxg5 {[%clk 0:01:39]} 14. hxg5 {[%clk 0:02:00]}  Rxh1+ {[%clk 0:01:39]} 15. Bxh1 {[%clk 0:02:00]}  Nc4 {[%clk 0:01:26]} 16. Bc1 {[%clk 0:01:58]}  Bc5 {[%clk 0:01:26]} 17. Kf1 {[%clk 0:01:45]}  Ne7 {[%clk 0:01:23]} 18. c3 {[%clk 0:01:38]}  Ng6 {[%clk 0:01:17]} 19. b3 {[%clk 0:01:31]}  Nb6 {[%clk 0:01:00]} 20. Be3 {[%clk 0:01:28]}  d5 {[%clk 0:00:54]} 21. Qh5 {[%clk 0:01:17]}  dxe4 {[%clk 0:00:47]} 22. Nxe6 {[%clk 0:01:15]}  fxe6 {[%clk 0:00:36]} 23. Qxg6+ {[%clk 0:01:15]}  Qf7 {[%clk 0:00:37]} 24. Qxf7+ {[%clk 0:00:52]}  Kxf7 {[%clk 0:00:38]} 25. Bxe4 {[%clk 0:00:53]}  Bxe4 {[%clk 0:00:19]} 26. Nxe4 {[%clk 0:00:53]}  Bxe3 {[%clk 0:00:15]} 27. Nd6+ {[%clk 0:00:53]}  Kg6 {[%clk 0:00:13]} 28. Nxc8 {[%clk 0:00:53]}  Nxc8 {[%clk 0:00:13]} 29. fxe3 {[%clk 0:00:54]}  Kxg5 {[%clk 0:00:14]} 30. Rd1 {[%clk 0:00:52]}  Kf5 {[%clk 0:00:10]} 31. Ke2 {[%clk 0:00:53]}  g5 {[%clk 0:00:09]} 32. c4 {[%clk 0:00:50]}  bxc4 {[%clk 0:00:09]} 33. bxc4 {[%clk 0:00:51]}  Ke5 {[%clk 0:00:09]} 34. c5 {[%clk 0:00:50]}  Ne7 {[%clk 0:00:08]} 35. Rd7 {[%clk 0:00:50]}  Nc6 {[%clk 0:00:07]} 36. Rd6 {[%clk 0:00:50]}  Ne7 {[%clk 0:00:07]} 37. Rxa6 {[%clk 0:00:48]}  g4 {[%clk 0:00:08]} 38. Rd6 {[%clk 0:00:44]}  Nd5 {[%clk 0:00:07]} 39. Kf2 {[%clk 0:00:31]}  Nc3 {[%clk 0:00:07]} 40. Rd4 {[%clk 0:00:30]}  Ne4+ {[%clk 0:00:06]} 41. Rxe4+ {[%clk 0:00:30]}  Kxe4 {[%clk 0:00:06]} 42. c6 {[%clk 0:00:30]} 1-0


[Site "https://www.chess.com"]

[Event "Titled Tuesday Blitz July 05 Early 2022"]
[White "Ibarra Jerez, Jose Carlos"]
[Black "Kovalev, Vladislav"]
[WhiteFideId "2226332"]
[BlackFideId "13504398"]
[WhiteElo "2628"]
[BlackElo "2530"]
[Result "1-0"]
[Round "07"]
[TimeControl "180+1"]
[Date "2022.07.05"]
[WhiteClock "0:00:20"]
[BlackClock "0:00:02"]

1. e4 {[%clk 0:03:00]}  e5 {[%clk 0:03:00]} 2. Nf3 {[%clk 0:02:59]}  Nc6 {[%clk 0:03:00]} 3. Bb5 {[%clk 0:02:59]}  a6 {[%clk 0:03:01]} 4. Bxc6 {[%clk 0:02:59]}  dxc6 {[%clk 0:03:01]} 5. O-O {[%clk 0:02:59]}  f6 {[%clk 0:02:54]} 6. d4 {[%clk 0:02:59]}  exd4 {[%clk 0:02:55]} 7. Nxd4 {[%clk 0:02:59]}  c5 {[%clk 0:02:51]} 8. Nb3 {[%clk 0:02:59]}  Qxd1 {[%clk 0:02:51]} 9. Rxd1 {[%clk 0:03:00]}  Bd7 {[%clk 0:02:48]} 10. Bf4 {[%clk 0:02:59]}  O-O-O {[%clk 0:02:46]} 11. Nc3 {[%clk 0:02:59]}  Be6 {[%clk 0:02:28]} 12. Rxd8+ {[%clk 0:02:56]}  Kxd8 {[%clk 0:02:29]} 13. Rd1+ {[%clk 0:02:56]}  Kc8 {[%clk 0:02:29]} 14. Nd5 {[%clk 0:02:52]}  Bxd5 {[%clk 0:02:20]} 15. Rxd5 {[%clk 0:02:53]}  b6 {[%clk 0:02:15]} 16. f3 {[%clk 0:02:52]}  Ne7 {[%clk 0:02:14]} 17. Rd1 {[%clk 0:02:49]}  Nc6 {[%clk 0:02:13]} 18. c3 {[%clk 0:02:45]}  Be7 {[%clk 0:02:11]} 19. Kf2 {[%clk 0:02:45]}  a5 {[%clk 0:02:06]} 20. a4 {[%clk 0:02:41]}  g5 {[%clk 0:01:43]} 21. Bg3 {[%clk 0:02:39]}  h5 {[%clk 0:01:13]} 22. h3 {[%clk 0:02:38]}  h4 {[%clk 0:01:13]} 23. Bh2 {[%clk 0:02:38]}  c4 {[%clk 0:00:56]} 24. Nd2 {[%clk 0:02:27]}  Kd7 {[%clk 0:00:35]} 25. Nxc4+ {[%clk 0:02:25]}  Kc8 {[%clk 0:00:35]} 26. Ke2 {[%clk 0:02:22]}  Re8 {[%clk 0:00:35]} 27. Ne3 {[%clk 0:02:21]}  Ne5 {[%clk 0:00:28]} 28. b3 {[%clk 0:02:06]}  Bc5 {[%clk 0:00:18]} 29. Ng4 {[%clk 0:01:34]}  Nxg4 {[%clk 0:00:18]} 30. hxg4 {[%clk 0:01:34]}  Re6 {[%clk 0:00:18]} 31. Rd5 {[%clk 0:01:31]}  Be7 {[%clk 0:00:11]} 32. Bg1 {[%clk 0:01:28]}  c6 {[%clk 0:00:09]} 33. Rf5 {[%clk 0:01:21]}  Kc7 {[%clk 0:00:08]} 34. Be3 {[%clk 0:01:22]}  Bd6 {[%clk 0:00:06]} 35. Bd4 {[%clk 0:01:19]}  Be7 {[%clk 0:00:05]} 36. Kd3 {[%clk 0:01:15]}  c5 {[%clk 0:00:04]} 37. Be3 {[%clk 0:01:09]}  Bd6 {[%clk 0:00:05]} 38. Rd5 {[%clk 0:00:59]}  Be5 {[%clk 0:00:04]} 39. Kc4 {[%clk 0:00:56]}  Kc6 {[%clk 0:00:03]} 40. Rd8 {[%clk 0:00:44]}  Rd6 {[%clk 0:00:02]} 41. Rxd6+ {[%clk 0:00:41]}  Bxd6 {[%clk 0:00:03]} 42. Bd2 {[%clk 0:00:38]}  Be5 {[%clk 0:00:01]} 43. b4 {[%clk 0:00:37]}  Bc7 {[%clk 0:00:01]} 44. bxc5 {[%clk 0:00:26]}  bxc5 {[%clk 0:00:02]} 45. Be3 {[%clk 0:00:27]}  Bd6 {[%clk 0:00:02]} 46. e5 {[%clk 0:00:25]}  Bxe5 {[%clk 0:00:01]} 47. Bxc5 {[%clk 0:00:23]}  Bxc3 {[%clk 0:00:02]} 48. Be7 {[%clk 0:00:20]} 1-0


[Site "https://www.chess.com"]